Cogmind - Beta 16.1 @@@ ROGUE MODE // 2026.02.13 @ 13:33:37 Player: Savant Result: Destroyed by A0-0W3(R) with Subdweller Laser Performance ------------- Evolutions (0) 0 Regions Visited (2) 400 Robots Destroyed (24) 120 Value Destroyed (576) 576 Prototype IDs (3) 60 Alien Tech Used (0) 0 Bonus (0) 0 TOTAL SCORE: 1156 Bonus ------- None Cogmind --------- Core Integrity 0/250 Matter 260/300 Energy 81/200 System Corruption 0% Temperature Cool (30) Movement Treading (160) Location -10/Subcaves Parts ------- > --- POWER (1) -------- Subdweller Power Source > --- PROPULSION (2) --- Light Treads Light Treads > --- UTILITY (2) ------ Large Storage Unit Light Armor Plating > --- WEAPON (2) ------- Subdweller Laser Subdweller Laser > --- INVENTORY (15) --- Light Treads Light Treads Wheel High-capacity Storage Unit Huge Storage Unit Medium Matter Pod (100) Structural Scanner Seismic Detector Improved EM Shotgun Subdweller Machine Gun Light Cannon Light Cannon Mini Grenade Launcher Dirty Datajack (20) Mining Laser Peak State ------------ > --- POWER ------------ Subdweller Power Source > --- PROPULSION ------- Light Treads Light Treads > --- UTILITY ---------- Large Storage Unit Makeshift System Restoration Module > --- WEAPON ----------- Improved EM Shotgun Subdweller Laser > --- INVENTORY -------- Light Treads Light Treads Wheel High-capacity Storage Unit Huge Storage Unit Medium Matter Pod Structural Scanner Seismic Detector Light Armor Plating Autogun Light Cannon Mini Grenade Launcher Dirty Datajack Mining Laser [Rating: 16] Favorites ----------- Power Ion Engine Engine Ion Engine Propulsion Light Treads Treads Light Treads Utility Large Storage Unit Device Seismic Detector Storage Large Storage Unit Processor Signal Interpreter Protection Light Armor Plating Weapon Improved EM Shotgun Energy Gun Improved EM Shotgun Ballistic Gun Autogun Ballistic Cannon Light Cannon Special Weapon Mining Laser Build | -11 -10 -10 ------- Run | Yrd Mat Sub Slots Evolved . | . . . Power . | . . . Propulsion . | . . . Utility . | . . . Weapon . | . . . Parts Attached 29 | 7 17 5 Power 2 | 1 . 1 Engine 2 | 1 . 1 Core . | . . . Reactor . | . . . Propulsion 4 | 2 1 1 Treads 4 | 2 1 1 Leg . | . . . Wheel . | . . . Hover . | . . . Flight . | . . . Utility 8 | 2 5 1 Device 4 | 1 2 1 Storage 2 | 1 1 . Processor 1 | . 1 . Hackware . | . . . Protection 1 | . 1 . Artifact . | . . . Weapon 15 | 2 11 2 Energy Gun 10 | 2 6 2 Energy Cannon . | . . . Ballistic Gun 2 | . 2 . Ballistic Cannon 2 | . 2 . Launcher . | . . . Special Weapon 1 | . 1 . Impact Weapon . | . . . Slashing Weapon . | . . . Piercing Weapon . | . . . Special Melee Weapon . | . . . Unidentified Prototypes 1 | . 1 . Parts Lost 2 | . . 2 Power . | . . . Propulsion 1 | . . 1 Utility . | . . . Weapon 1 | . . 1 Highest Loss Streak 2 | . . 2 To Critical Strikes . | . . . Average Backups 12 | 4 11 14 Power . | . . . Propulsion 3 | 3 4 3 Utility 4 | . 3 5 Weapon 4 | . 3 5 Tool/Special . | . . . Unused Backups 14 | . 5 9 Power 1 | . 1 . Propulsion 6 | . 3 3 Utility 3 | . . 3 Weapon 3 | . 1 2 Tool/Special 1 | . . 1 Average Slot Usage (%) 99 | . 99 99 Engine 14 | . 14 14 Treads 27 | . 27 28 Device 11 | . 11 12 Storage 14 | . 14 14 Protection 2 | . 2 1 Energy Gun 19 | . 21 15 Ballistic Cannon 7 | . 4 10 Special Weapon 1 | . 1 . Peak Build Rating 16 | 7 12 16 Average Rating 9 | 5 8 12 On Entrance 6 | . 7 12 Avg Prop Armor Cover (%) . | . . . Naked Turns . | . . . Heaviest Build 37 | 14 34 37 Greatest Support 40 | 40 40 40 Greatest Overweight (x) 4 | 4 . . Average Overweight (x) . | . . . Largest Inventory Capacity 15 | 8 15 15 Average Capacity 13 | 7 12 15 Most Carried 15 | 7 15 15 Average Carried 12 | 5 11 14 Final Capacity 15 | 8 15 15 Final Carried 15 | 7 15 15 Class Distribution -------------------- 100% | Mutant Dominant Class ---------------- Mutant | -10/Materials Mutant | -10/Subcaves Resources | -11 -10 -10 ----------- Run | Yrd Mat Sub Matter Collected 1170 | 235 533 402 Remotely . | . . . Salvage Created 755 | 49 462 244 Parts 50 | 6 33 11 Haulers Intercepted 1 | . 1 . Recyclers Shooed . | . . . Parts Field Recycled . | . . . Retrieved Matter . | . . . Parts Self-Destructed 3 | . . 3 Prevented . | . . . Parts Restored . | . . . Kills | -11 -10 -10 ------- Run | Yrd Mat Sub Combat Hostiles Destroyed 14 | . 9 5 Guns 11 | . 9 2 Cannons 2 | . . 2 Classes Destroyed 8 | 1 6 1 Builder 2 | . 2 . Tunneler 2 | 2 . . Hauler 1 | . 1 . Operator 2 | . 2 . Watcher 3 | . 3 . Swarmer 3 | . 3 . Grunt 6 | . 6 . Subdweller 5 | . . 5 Best Kill Streak 4 | 2 4 2 Combat Bots Only 3 | . 3 2 Max Kills in Single Turn 2 | 1 2 1 Gunslinging . | . . . Exploded . | . . . Melee . | . . . Uniques/NPCs Destroyed . | . . . Combat | -11 -10 -10 -------- Run | Yrd Mat Sub Hostile Shots Fired 76 | . 45 31 Missed 18 | . 11 7 Hits 58 | . 34 24 Projectile 58 | . 34 24 Critical Strikes 1 | . . 1 Damage Taken 1051 | . 467 584 Core 251 | . 80 171 Absorbed by Shields . | . . . Core Remaining (%) 100 | 100 . . Volleys Fired 100 | 8 64 28 Largest 2 | 2 2 2 Hottest 120 | 90 100 120 Shots Fired 177 | 16 111 50 Gun 137 | 16 87 34 Cannon 16 | . 6 10 Launcher . | . . . Special 24 | . 18 6 Kinetic 31 | . 18 13 Thermal 83 | 16 49 18 Explosive . | . . . Electromagnetic 63 | . 44 19 Robot Hit Streak 28 | 6 7 28 Robot Miss Streak 7 | 3 7 1 Penetration Max . | . . . Secondary Targets 1 | . 1 . Max Gunslinging Chain 1 | . 1 . Shots Hit Robots 101 | 9 51 41 Core Hits 36 | 2 22 12 Critical Kills . | . . . Critical Parts Destroyed . | . . . Critical Strikes 1 | . 1 . Corrupt 1 | . 1 . Melee Attacks . | . . . Impact . | . . . Slashing . | . . . Piercing . | . . . Sneak Attacks . | . . . Combat Hostiles . | . . . Follow-up Attacks . | . . . Damage Inflicted 1645 | 106 844 695 Guns 1282 | 106 675 501 Cannons 163 | . 39 124 Explosions 200 | . 130 70 Melee . | . . . Ramming . | . . . Kinetic 303 | . 146 157 Thermal 781 | 106 401 274 Explosive . | . . . Electromagnetic 561 | . 297 264 Impact . | . . . Slashing . | . . . Piercing . | . . . Highest Corruption 4 | . 4 4 Average Corruption 2 | . 2 2 Corruption Purged 4 | . . 4 Corruption Blocked . | . . . Effects 33 | . 27 6 Message Errors 11 | . 9 2 Matter Fused 10 | . 8 2 Heat Flow Errors 4 | . 4 . Energy Discharges 2 | . 1 1 Parts Rejected 1 | . 1 . Parts Fused 1 | . 1 . Data Loss (minor) 1 | . 1 . Data Loss (major) 1 | . . 1 Misfires 2 | . 2 . Overload Shots . | . . . Overflow Damage 36 | . 36 . Projectiles . | . . . Explosions 36 | . 36 . Melee . | . . . Knockbacks 2 | . . 2 Impact . | . . . Kinetic 2 | . . 2 Secondary . | . . . Self-Inflicted Damage 127 | . 64 63 Shots 2 | . 1 1 Rammed . | . . . Targets Rammed . | . . . Kicked . | . . . Crushed . | . . . Highest Temperature 301 | 210 301 282 Average Temperature 82 | 117 76 104 Received Heat Transfer 573 | . 174 399 Effects 1 | . 1 . Damage (minor) 1 | . 1 . Siege Activations . | . . . Martial Activations . | . . . Shielding Activations . | . . . Robots Disrupted . | . . . Combat Hostiles . | . . . Robots Corrupted 1 | . . 1 Combat Hostiles 1 | . . 1 Parts Fried 2 | . 1 1 Impact Corruptions . | . . . Robots Melted . | . . . Combat Hostiles . | . . . Parts Melted 4 | . 4 . Heat Transferred 1480 | 261 919 300 Parts Sabotaged . | . . . Parts Stolen . | . . . Parts Stripped . | . . . Power Chain Reactions 2 | . 1 1 Alert | -11 -10 -10 ------- Run | Yrd Mat Sub Maximum Alert Level . | . . . Low Security (%) 100 | 100 100 . Level 1 . | . . . Level 2 . | . . . Level 3 . | . . . Level 4 . | . . . Level 5 . | . . . High Security . | . . . Max Security . | . . . Peak Influence 111 | 5 111 . Initial . | . . . Average 30 | . 32 . Influence Increases 422 | 10 412 . Destroy 0b10 Robot/C 180 | . 180 . Destroy 0b10 Robot/NC 50 | 10 40 . Destroy Leader 48 | . 48 . Successful Hack 16 | . 16 . Select Force Hacks 60 | . 60 . Disable Machine 15 | . 15 . Destroy Structure 38 | . 38 . Lose Combat Pursuer 15 | . 15 . Influence Decreases 422 | 10 398 14 Entered New Map 7 | . . 7 Time Decay 415 | 10 398 7 Squads Dispatched 3 | . 3 . Investigation 2 | . 2 . Extermination . | . . . Reinforcement 1 | . 1 . Assault . | . . . Garrison . | . . . Intercept . | . . . Searches Triggered . | . . . Construction Impeded . | . . . Haulers Reinforced . | . . . Active Scanning Responses . | . . . Cargo Convoy Interrupts . | . . . Stealth | -11 -10 -10 --------- Run | Yrd Mat Sub Distress Signals . | . . . Communications Jammed . | . . . Distress Signals . | . . . Times Spotted 25 | . 18 7 Peak Tracking Total 3 | . 3 2 Tactical Retreats 1 | . 1 . Traps | -11 -10 -10 ------- Run | Yrd Mat Sub Traps Triggered 3 | . 3 . Indirectly . | . . . Trap Hack Attempts . | . . . Triggered . | . . . Disarmed . | . . . Reprogrammed . | . . . Reused . | . . . Traps Extracted . | . . . Installed 1 | . . 1 Triggered . | . . . Machines | -11 -10 -10 ---------- Run | Yrd Mat Sub Machines Disabled 1 | . 1 . Max in Single Turn 1 | . 1 . Machines Repaired . | . . . Machines Dismantled . | . . . Machines Sabotaged . | . . . Overloaded Fab Kills . | . . . Hacking | -11 -10 -10 --------- Run | Yrd Mat Sub Machines Accessed 9 | . 8 1 Terminals 6 | . 6 . Fabricators . | . . . Repair Stations . | . . . Recycling Units 2 | . 2 . Scanalyzers . | . . . Garrison Access . | . . . Total Hacks 28 | . 24 4 Successful 18 | . 14 4 Failed 10 | . 10 . Catastrophic . | . . . Database Lockouts . | . . . Manual 17 | . 17 . Terminals 19 | . 19 . Fabricators . | . . . Repair Stations . | . . . Recycling Units 5 | . 5 . Scanalyzers . | . . . Garrison Access . | . . . Terminal Hacks 9 | . 5 4 Record 4 | . . 4 Robot Analysis 2 | . 2 . Prototype ID Bank 1 | . 1 . Locate Traps 1 | . 1 . Zone Layout 1 | . 1 . Fabricator Hacks . | . . . Repair Station Hacks . | . . . Recycling Unit Hacks 1 | . 1 . Report Inventory 1 | . 1 . Scanalyzer . | . . . Garrison Access Hacks . | . . . Unauthorized Hacks 8 | . 8 . Terminals 6 | . 6 . Botnet 1 | . 1 . Skim 5 | . 5 . Fabricators . | . . . Repair Stations . | . . . Recycling Units 2 | . 2 . Tunnel 2 | . 2 . Scanalyzers . | . . . Garrison Access . | . . . Data Cores Recovered 1 | . 1 . Used . | . . . Hacking Detections 6 | . 6 . Full Trace Events . | . . . Feedback Events . | . . . Feedback Blocked . | . . . Robot Schematics Acquired . | . . . Robots Built . | . . . Authchips . | . . . Time . | . . . Total Robot Build Rating . | . . . Part Schematics Acquired . | . . . Parts Built . | . . . Authchips . | . . . Time . | . . . Total Part Build Rating . | . . . Part Studies Acquired . | . . . Parts Repaired . | . . . Time . | . . . Parts Recycled . | . . . Recycled Matter . | . . . Retrieved Matter . | . . . Retrieved Components . | . . . Parts Scanalyzed . | . . . Part Schematics Acquired . | . . . Parts Damaged . | . . . Bothacking | -11 -10 -10 ------------ Run | Yrd Mat Sub Used RIF Installer . | . . . Robots Hacked . | . . . Non-combat . | . . . Combat . | . . . Robot Hacks Applied . | . . . Relay Couplers Released . | . . . Fabnet Peak Effective % . | . . . Robots Rewired . | . . . Allies Hacked . | . . . Hacks Repelled . | . . . Allies | -11 -10 -10 -------- Run | Yrd Mat Sub Total Allies . | . . . Largest Group . | . . . Highest-Rated Group . | . . . Highest-Rated Ally . | . . . Total Orders . | . . . Ally Attacks . | . . . Total Damage . | . . . Kills . | . . . Allies Corrupted . | . . . Allies Melted . | . . . Intel | -11 -10 -10 ------- Run | Yrd Mat Sub Active Infowar (turns) 2121 | 28 1435 658 Structural 52 | . 52 . Seismic 2069 | 28 1383 658 Robot Analysis Total 2 | . 2 . Derelict Logs Recovered 1 | . . 1 Drone Launches . | . . . Drone Recoveries . | . . . Exploration | -11 -10 -10 ------------- Run | Yrd Mat Sub Turns Passed 2853 | 122 1748 983 Spaces Moved 1279 | 56 827 396 Core 15 | 15 . . Treads 1264 | 41 827 396 Legs . | . . . Wheels . | . . . Hover . | . . . Flight . | . . . Fastest Speed 50 | 50 160 160 Average Speed 159 | 146 160 160 Slowest Speed 250 | 250 160 160 Overloaded Moves . | . . . Propulsion Burnouts . | . . . Robots Hopped . | . . . Potential Cave-ins . | . . . Cave-ins Triggered . | . . . Exploration Rate (%) 35 | 5 93 9 Regions Visited 2 Branch Regions 1 Pre-discovered Areas 3 | . 2 1 Known Exits Taken . | . . . Unknown Exits Taken 2 | 1 1 . Scrap Searched 3 | . . 3 Spaces Dug 15 | . 15 . Terrain Destroyed 49 | . 37 12 Melee . | . . . Projectile 16 | . 16 . AOE 33 | . 21 12 Terrain Rammed . | . . . Walls Destroyed . | . . . Machines Disabled . | . . . Actions | -11 -10 -10 --------- Run | Yrd Mat Sub Total 1860 | 77 1102 681 Wait 366 | . 143 223 Move 1277 | 55 826 396 Hop . | . . . Pick Up 30 | 7 16 7 Fast Attach 14 | 7 6 1 Attach 5 | . 2 3 Detach 3 | . 3 . Swap 44 | . 28 16 Drop 20 | . 14 6 Fire 100 | 8 64 28 Melee . | . . . Ram . | . . . Kick . | . . . Crush . | . . . Escape Stasis . | . . . Rewire . | . . . Trap 1 | . . 1 Miscellaneous . | . . . Route ------- -11/Scrapyard -10/Materials (discovered 5 exits: *Mat x3 / *Min / *Sub) -10/Subcaves History --------- Turn | Location | Event 22 | -11/Scrapyard | Discovered new exit (range 15) 123 | -11/Scrapyard | Entered Materials 221 | -10/Materials | Discovered new exit (range 6) 317 | -10/Materials | Build established: Mutant 604 | -10/Materials | Discovered new exit (range 16) 662 | -10/Materials | Discovered new exit (range 14) 1321 | -10/Materials | Learned 2 Mines zone layouts 1375 | -10/Materials | Discovered new exit (range 16) 1413 | -10/Materials | Identified exit to Materials 1420 | -10/Materials | Learned Storage stockpile data 1454 | -10/Materials | Loaded intel: 2 recycling unit locations 1478 | -10/Materials | Learned 2 Mines zone layouts 1510 | -10/Materials | Learned 2 Mines zone layouts 1554 | -10/Materials | Identified exit to Mines 1863 | -10/Materials | Discovered new exit (range 6) 1871 | -10/Materials | Entered Subcaves 1872 | -10/Subcaves | Approached by a straggling Scientist 1886 | -10/Subcaves | Learned location of Zion (-6) 1910 | -10/Subcaves | Disturbed a concealed Subdweller 1917 | -10/Subcaves | Core integrity fell below 50% 2004 | -10/Subcaves | Visited Clippyterm 2009 | -10/Subcaves | Learned Factory fabricator intel 2009 | -10/Subcaves | Learned Research security intel 2694 | -10/Subcaves | Disturbed a concealed Subdweller 2849 | -10/Subcaves | Core integrity fell below 20% 2854 | -10/Subcaves | Destroyed by A0-0W3(R) with Subdweller Laser Last Messages --------------- 02734_ 8W-RKZ(R) knocked back. 02737_ 8W-RKZ(R) destroyed. 02740_ Subatomizers dissect the Corrupted Sub. Optics. 02764_ Q6-OM9(R) knocked back. 02767_ Q6-OM9(R) destroyed. 02770_ Dropped Autogun. 02772_ Acquired Corrupted Sub. Machine Gun. 02773_ Acquired 59 matter. 02774_ Subatomizers dissect the Corrupted Sub. Optics. 02775_ Acquired 2 matter. 02778_ Acquired 3 matter. 02779_ Dropped Autogun. 02783_ Acquired 2 matter. 02786_ Acquired Sub. Laser. 02787_ Subatomizers dissect the Corrupted Sub. Optics. B5-5EC(c): "I think it's somewhere northwest of here" 02789_ Acquired 36 matter. 02790_ Acquired 13 matter. 02801_ Subatomizers dissect the Corrupted Sub. Optics. 02817_ B5-5EC(c) destroyed. Map ----- +----------------------------------------------------+ | ?????????????????????????????????????????????????? | | ?????????????????????????????????????????????????? | | ?????????????????????????????????????????????????? | | ?????????????????????????????????????????????????? | | ?????????????????????????????????????????????????? | | ?????????????????????????????????????????????????? | | ?????????????????????????????????????????????????? | | ?????????????????????????????????????????????????? | | ?????????????????????????????????????????????????? | | ?????????????????????????????????????????????????? | | ?????????????????????????????????????????????????? | | ?????????????????????????????????????????????????? | | ?????????????????????????????????????????????????? | | ?????????????????????????????????????????????????? | | ?????????????????????????????????????????????????? | | ?????????????????????????????????????????????????? | | ?????????????????????????????????????????????????? | | ?????????????????????????????????????????????????? | | ?????????????????????????????????????????????????? | | ?????????????????????????????????????????????????? | | ?????????????????????????????????????????????????? | | #####????????????????????????????????????????????? | | """"#???????????????#######??????????????????????? | | "X""#???????????????#" #??????????????????????? | | "#???????????????#$$## #??????????????????????? | | # ###?####????????###### @#??????????????????????? | | # ##### ########## ##R ##??????????????????????? | | ## # # ##R##??????????????????????? | | " [! "#??????????????????????? | | """"""## %*"#####??????????????????? | | """#" ### [ %*! &""" ##?????????????????? | | ## #####?## && "" "#????????????????? | | "#######????# " "#" ""???????????????? | | #?# """??# """ """ ##??# ???????????????? | | # ##?? " " """" #?????????????????????? | | ### #???# "" " ""????????????????????? | | ### #??##""###" ????????????????????? | | #?# # #?# ""####### " #???????????????????? | | ??## ###?# " # # "" ??????????????????? | | ???# #??# " "" ??????????????????? | | ??## #### "" ??????????????????? | | ??# ## # ## ### ## ??????????????????? | | ??# ####### #?????????????????????????? | | ??## ##???? #????????????????????????? | | ???## ##???????? #???????????????????????? | | ????# #?????????????????????????????????? | | ???## ###?????????????????????????????????? | | #### ##???????????????????????????????????? | | ## ####????????????????????????????????????? | | ##???????????????????????????????????????? | +----------------------------------------------------+ Best States ------------- Heat Dissipation 25 Energy Generation 15 Energy Capacity 250 Matter Stores 300 Matter Capacity 300 Sight Range 16 Terrain Scan Density 10 Armor Coverage 150 Evasion (%) 50 Recoil Reduction 2 Item Schematics ----------------- None Robot Schematics ------------------ None Fabricated ------------ Nothing Repaired ---------- Nothing Studied --------- None Alien Tech Used ----------------- None Achievements -------------- None Challenges ------------ None Game ------ Seed TrackerSalvageSword Manual? 0 Play Time 00:26:31 Cumulative 1041.0 hours Start 2026.02.13 @ 13:07:54 End 2026.02.13 @ 13:33:37 Sessions 1 Manual Loads 0 Difficulty Rogue Special Mode None Game No. 190 Rogue 190 Adventurer 0 Explorer 0 Win Type - Total 60 Types 23/7/10/1/3/1/8/3/2/2 Lore% 92 Gallery% 89 Achievement% 75 Wizard Run 0 Options --------- Layout 0 ASCII 0 Keyboard 0 Movement Numpad Keybinds 0 Fullscreen 1 Font 18/SmallcapsGlow Map View 76x50 Zoom Use 0% Tactical HUD 1 Map Filters NONE Filters NONE Steam 1 RUN: c8ddf90c-5570-41e3-b012-89a5664dbd0b